lending/lending_fUSD_20250315
["ID","MTS","AMOUNT","RATE_DAILY","PERIOD"]
[356183497,1742047843327,-550.0,0.0001,2]
[356183498,1742047843390,-1680.12912103,0.0001,2]
[356183499,1742047843404,-4687.24404073,0.0001,2]
[356183501,1742047844727,-892.34436795,0.0001,2]
[356183538,1742047846453,-10605.8097591,0.0001,2]
[356183579,1742047846809,-17199.51082193,0.0001,2]
[356183584,1742047846821,-4236.59259889,0.0001,2]
[356183587,1742047846834,-13016.23959543,0.0001,2]
[356183591,1742047846851,-7533.61178949,0.0001,2]
[356183654,1742047988298,2600.0,0.0002,100]
[356183657,1742048165982,173.62,9.368e-05,2]
[356183660,1742048477510,-65000.0,9.9e-05,2]
[356183661,1742048680167,150.0,0.00011998,7]
[356183679,1742049031596,-300.0,9.899e-05,2]
[356183680,1742049031606,-5776.81394108,9.9e-05,2]
[356183681,1742049031812,-535.3884398,9.9e-05,2]
[356183682,1742049031824,-19811.29541912,9.9e-05,2]
[356183683,1742049031834,-217.77360995,9.902e-05,2]
[356183684,1742049031847,-150.0,9.903e-05,2]
[356183685,1742049031856,-3510.1827176,9.998e-05,2]
[356183686,1742049031865,-168.03612224,0.0001,2]
[356183687,1742049031875,-190.0,0.0001,2]
[356183688,1742049031886,-190.0,0.0001,2]
[356183689,1742049031895,-1486.1575067,0.0001,2]
[356183691,1742049031905,-302231.55253178,0.0001,2]
[356183706,1742049037409,-33851.55237072,0.0001,2]
[356183707,1742049037497,-552.6000004,0.0001,2]
[356183708,1742049037509,-4227.55,0.0001,2]
[356183709,1742049037519,-280.2692,0.0001,2]
[356183710,1742049037600,-1360.21613656,0.0001,2]
[356183713,1742049039602,-299.9249473,0.0001,2]
[356183714,1742049039699,-15473.94686839,0.0001,2]
[356183715,1742049039713,-50522.54333944,0.0001,2]
[356183716,1742049039724,-367.65400757,0.0001,2]
[356183717,1742049039733,-13143.05703152,0.0001,2]
[356183718,1742049039949,-5074.20399333,0.0001,2]
[356183724,1742049042578,-5556.75605346,0.0001,2]
[356183725,1742049044869,-3525.24219867,0.0001,2]
[356183726,1742049044881,-4727.92676812,0.0001,2]
[356183727,1742049044894,-900.0,0.0001,2]
[356183730,1742049045508,-600.0,9.949e-05,2]
[356183732,1742049045519,-36905.12223538,0.0001,2]
[356183734,1742049045531,-1062.24948234,0.0001,2]
[356183735,1742049045610,-478.0518625,0.0001,2]
[356183736,1742049045623,-996.38226193,0.0001,2]
[356183737,1742049045635,-1690.0972864,0.0001,2]
[356183738,1742049045696,-79804.94257185,0.0001,2]
[356183739,1742049045708,-2291.78965037,0.0001,2]
[356183745,1742049395334,2371.13204827,0.00014,30]
[356183746,1742049395365,5000.0,0.00014,30]
[356183747,1742049395392,2335.86795173,0.00014,30]
[356183751,1742049818011,-212.78631697,9.77e-05,2]
[356183752,1742049844072,-300.0,9.77e-05,2]
[356183753,1742049845329,-200.0,9.77e-05,2]
[356183756,1742050231632,-491.99368303,9.77e-05,2]
[356183757,1742050231642,-550.0,9.834e-05,2]
[356183758,1742050231652,-150.0,9.899e-05,2]
[356183759,1742050231661,-300.0,9.899e-05,2]
[356183760,1742050231671,-326.6993,9.9e-05,2]
[356183761,1742050231680,-314.9332,9.9e-05,2]
[356183762,1742050231689,-8790.3423,9.9e-05,2]
[356183763,1742050231699,-936.1814,9.9e-05,2]
[356183764,1742050231708,-1742.3436,9.9e-05,2]
[356183765,1742050231718,-500.0871,9.9e-05,2]
[356183766,1742050231727,-1784.30333769,0.0001,2]
[356183767,1742050231736,-249.4589278,0.0001,2]
[356183768,1742050231745,-464.3628333,0.0001,2]
[356183769,1742050231755,-4208.2045959,0.0001,2]
[356183770,1742050231764,-1114.6181301,0.0001,2]
[356183771,1742050231774,-269.23275,0.0001,2]
[356183772,1742050231783,-167.0,0.0001,3]
[356183773,1742050231792,-195.343238,0.00010007,2]
[356183774,1742050231802,-289.23885332,0.00010272,2]
[356183775,1742050231811,-500.0,0.00010466,2]
[356183776,1742050231820,-289.23885332,0.00010541,2]
[356183777,1742050231830,-150.0,0.00010747,2]
[356183778,1742050231839,-550.0,0.00010747,2]
[356183779,1742050231850,-150.0,0.00010747,2]
[356183780,1742050231859,-550.0,0.00010747,2]
[356183781,1742050231869,-500.0,0.00010849,2]
[356183782,1742050231878,-420.0,0.00010889,2]
[356183783,1742050231887,-200.0,0.00010959,2]
[356183784,1742050231896,-200.0,0.00010959,2]
[356183785,1742050231906,-200.0,0.00010959,2]
[356183786,1742050231916,-513.29255881,0.00011,2]
[356183787,1742050231926,-200.0,0.00011084,2]
[356183788,1742050231935,-1500.0,0.00011111,2]
[356183789,1742050231944,-1201.86,0.00011135,2]
[356183790,1742050231954,-3676.76,0.00011164,2]
[356183791,1742050231963,-168.49,0.0001117,2]
[356183792,1742050231972,-1144.55,0.00011307,2]
[356183793,1742050231982,-2000.0,0.00011349,2]
[356183794,1742050231991,-86.89993683,0.00011385,2]
[356183795,1742050232003,-74.93006317,0.00011385,2]
[356183796,1742050232012,-1000.0,0.00011386,2]
[356183797,1742050232021,-1157.1,0.00011387,2]
[356183798,1742050232031,-1251.4,0.00011399,2]
[356183799,1742050232040,-151.30495365,0.000115,5]
[356183801,1742050232050,-250.0,0.00011549,2]
[356183803,1742050232059,-150.97,0.00011552,2]
[356183805,1742050232069,-150.97,0.00011609,2]
[356183807,1742050232078,-23900.0,0.00011623,2]
[356183809,1742050232087,-639.56,0.00011638,2]
[356183811,1742050232097,-150.0,0.00011653,2]
[356183813,1742050232107,-2751.0,0.00011663,2]
[356183815,1742050232117,-150.97,0.00011667,2]
[356183817,1742050232126,-150.97,0.00011725,2]
[356183818,1742050232135,-1546.12,0.00011781,2]
[356183819,1742050232144,-150.97,0.00011783,2]
[356183821,1742050232153,-150.97,0.0001184,2]
[356183823,1742050232163,-150.97,0.00011898,2]
[356183825,1742050232173,-167.78,0.00011919,2]
[356183827,1742050232183,-150.97,0.00011956,2]
[356183829,1742050232192,-800.0,0.00012,2]
[356183831,1742050232202,-150.97,0.00012014,2]
[356183833,1742050232211,-1204.78,0.00012034,2]
[356183835,1742050232227,-150.97,0.00012072,2]
[356183836,1742050232236,-151.0,0.00012087,2]
[356183837,1742050232246,-912.87,0.00012087,2]
[356183838,1742050232256,-9999.99,0.00012087,2]
[356183839,1742050232267,-69061.59,0.00012087,2]
[356183840,1742050232276,-2619.16063053,0.000121,2]
[356183842,1742050232287,-150.97,0.00012129,2]
[356183844,1742050232298,-183.0,0.00012193,2]
[356183846,1742050232308,-153.43,0.00012289,2]
[356183847,1742050232319,-153.43,0.00012327,2]
[356183850,1742050232329,-153.59,0.00012351,2]
[356183851,1742050232339,-153.43,0.00012366,2]
[356183854,1742050232349,-44516.0,0.00012373,2]
[356183855,1742050232359,-153.43,0.00012404,2]
[356183856,1742050232368,-153.59,0.00012407,2]
[356183857,1742050232378,-153.43,0.00012443,2]
[356183859,1742050232387,-153.59,0.00012463,2]
[356183861,1742050232397,-153.43,0.00012481,2]
[356183863,1742050232407,-153.59,0.00012519,2]
[356183865,1742050232416,-153.43,0.0001252,2]
[356183867,1742050232425,-153.43,0.00012558,2]
[356183869,1742050232435,-153.59,0.00012576,2]
[356183871,1742050232445,-153.43,0.00012596,2]
[356183873,1742050232454,-153.59,0.00012632,2]
[356183875,1742050232463,-153.43,0.00012635,2]
[356183877,1742050232473,-153.43,0.00012673,2]
[356183879,1742050232482,-153.59,0.00012688,2]
[356183881,1742050232492,-153.43,0.00012712,2]
[356183882,1742050232502,-153.59,0.00012744,2]
[356183883,1742050232512,-153.43,0.0001275,2]
[356183884,1742050232521,-153.43,0.00012788,2]
[356183885,1742050232530,-1572.4869,0.00012793,2]
[356183886,1742050232539,-267.5963,0.00012793,2]
[356183887,1742050232549,-614.7553,0.00012793,2]
[356183888,1742050232559,-153.59,0.000128,2]
[356183889,1742050232569,-161.83,0.00012809,2]
[356183890,1742050232579,-1000.0,0.00012809,2]
[356183891,1742050232589,-1157.1,0.0001281,2]
[356183892,1742050232599,-153.43,0.00012827,2]
[356183893,1742050232608,-153.59,0.00012856,2]
[356183894,1742050232618,-153.43,0.00012865,2]
[356183895,1742050232628,-212.78631697,0.00012892,3]
[356183896,1742050232638,-1462.17,0.00012893,2]
[356183897,1742050232648,-1838.93,0.00012893,2]
[356183898,1742050232658,-8266.03,0.00012893,2]
[356183899,1742050232667,-150.99,0.00012893,2]
[356183900,1742050232677,-657.67,0.00012893,2]
[356183901,1742050232686,-3504.7,0.00012893,2]
[356183902,1742050232696,-1112.75,0.00012893,2]
[356183903,1742050232706,-2822.28,0.00012893,2]
[356183904,1742050232715,-9999.99,0.00012893,2]
[356183905,1742050232724,-153.43,0.00012904,2]
[356183906,1742050232734,-153.59,0.00012912,2]
[356183907,1742050232744,-153.59,0.00012968,2]
[356183908,1742050232759,-3032.59368552,0.00013,2]
[356183909,1742050232769,-800.0,0.00013,3]
[356183910,1742050232779,-287.14,0.00013,2]
[356183911,1742050232789,-508.45,0.00013,2]
[356183912,1742050232799,-500.0,0.00013,2]
[356183913,1742050232810,-500.0,0.00013,2]
[356183914,1742050232820,-500.0,0.00013,2]
[356183915,1742050232829,-500.0,0.00013,2]
[356183916,1742050232839,-500.0,0.00013,2]
[356183917,1742050232849,-500.0,0.00013,2]
[356183918,1742050232859,-500.0,0.00013,2]
[356183919,1742050232869,-500.0,0.00013,2]
[356183920,1742050232879,-500.0,0.00013,2]
[356183921,1742050232888,-500.0,0.00013,2]
[356183922,1742050232898,-500.0,0.00013,2]
[356183923,1742050232908,-500.0,0.00013,2]
[356183924,1742050232918,-500.0,0.00013,2]
[356183925,1742050232930,-500.0,0.00013,2]
[356183926,1742050232940,-500.0,0.00013,2]
[356183927,1742050232950,-500.0,0.00013,2]
[356183928,1742050232960,-500.0,0.00013,2]
[356183929,1742050232969,-500.0,0.00013,2]
[356183930,1742050232980,-500.0,0.00013,2]
[356183931,1742050232989,-500.0,0.00013,2]
[356183932,1742050232999,-500.0,0.00013,2]
[356183933,1742050233009,-500.0,0.00013,2]
[356183934,1742050233019,-500.0,0.00013,2]
[356183935,1742050233029,-500.0,0.00013,2]
[356183936,1742050233038,-500.0,0.00013,2]
[356183937,1742050233048,-500.0,0.00013,2]
[356183938,1742050233058,-500.0,0.00013,2]
[356183939,1742050233068,-500.0,0.00013,2]
[356183940,1742050233078,-500.0,0.00013,2]
[356183941,1742050233088,-500.0,0.00013,2]
[356183942,1742050233098,-546.07,0.00013,2]
[356183943,1742050233108,-500.0,0.00013,2]
[356183944,1742050233120,-500.0,0.00013,2]
[356183945,1742050233130,-500.0,0.00013,2]
[356183946,1742050233139,-500.0,0.00013,2]
[356183947,1742050233148,-255.2909,0.00013064,2]
[356183948,1742050233158,-313.5533,0.00013064,2]
[356183949,1742050233167,-151.0,0.0001353,2]
[356183950,1742050233177,-160.07,0.0001353,2]
[356183951,1742050233187,-150.0,0.00013661,2]
[356183952,1742050233197,-160.07,0.00013666,2]
[356183953,1742050233207,-150.0,0.00013673,2]
[356183954,1742050233220,-150.0,0.00013677,2]
[356183955,1742050233230,-150.0,0.00013696,2]
[356183956,1742050233240,-150.0,0.00013696,2]
[356183957,1742050233251,-200.0,0.00013699,2]
[356183958,1742050233262,-214.54575466,0.000137,2]
[356183959,1742050233272,-225.67978594,0.000137,2]
[356183960,1742050233282,-150.0,0.00013719,2]
[356183961,1742050233291,-150.0,0.00013719,2]
[356183962,1742050233301,-150.0,0.00013721,2]
[356183963,1742050233311,-150.0,0.00013722,2]
[356183964,1742050233322,-150.0,0.00013724,2]
[356183965,1742050233332,-254.04,0.0001373,2]
[356183966,1742050233343,-150.0,0.00013731,2]
[356183967,1742050233354,-150.0,0.00013733,2]
[356183968,1742050233365,-333.52219863,0.00013747,2]
[356183969,1742050233376,-150.0,0.00013748,2]
[356183970,1742050233386,-150.0,0.00013754,2]
[356183971,1742050233397,-2387.18578784,0.00013765,2]
[356183972,1742050233407,-150.0,0.00013768,2]
[356183973,1742050233416,-150.0,0.00013781,2]
[356183974,1742050233427,-150.0,0.00013793,2]
[356183975,1742050233437,-160.07,0.00013801,2]
[356183976,1742050233447,-150.0,0.00013808,2]
[356183977,1742050233457,-150.0,0.0001382,2]
[356183978,1742050233467,-1387.0,0.0001383,2]
[356183979,1742050233476,-150.0,0.00013846,2]
[356183980,1742050233486,-150.0,0.00013857,2]
[356183981,1742050233495,-183.38397436,0.00013857,2]
[356183982,1742050233505,-4602.38745534,0.0001386,2]
[356183983,1742050233515,-150.0,0.00013863,2]
[356183984,1742050233525,-150.0,0.00013866,2]
[356183985,1742050233535,-150.0,0.0001387,2]
[356183986,1742050233545,-150.0,0.00013877,2]
[356183987,1742050233555,-150.0,0.00013885,2]
[356183988,1742050233564,-167.78,0.00013887,2]
[356183989,1742050233574,-150.0,0.00013896,2]
[356183990,1742050233584,-150.0,0.00013896,2]
[356183991,1742050233594,-150.0,0.00013935,2]
[356183992,1742050233603,-173.43,0.00013936,2]
[356183993,1742050233613,-160.07,0.00013936,2]
[356183994,1742050233622,-1250.0,0.00013939,2]
[356183995,1742050233632,-1250.0,0.00013939,2]
[356183996,1742050233641,-168.37846387,0.00014,2]
[356183997,1742050233651,-160.07,0.00014072,2]
[356183998,1742050233660,-500.0,0.00014073,2]
[356183999,1742050233669,-160.07,0.00014207,2]
[356184000,1742050233679,-161.83,0.00014232,2]
[356184001,1742050233689,-1000.0,0.00014232,2]
[356184002,1742050233698,-1157.1,0.00014234,2]
[356184003,1742050233708,-1204.78,0.00014297,2]
[356184004,1742050233717,-269.23275,0.00015,2]
[356184005,1742050233727,-300.0,0.00015068,2]
[356184006,1742050233737,-152.0,0.00015154,30]
[356184007,1742050233748,-150.0,0.00015404,5]
[356184008,1742050233757,-150.0,0.00015404,5]
[356184009,1742050233768,-150.0,0.00015451,5]
[356184010,1742050233778,-150.0,0.00015451,5]
[356184011,1742050233789,-190.0,0.00015455,5]
[356184012,1742050233798,-150.0,0.00015514,2]
[356184013,1742050233808,-150.0,0.00015514,2]
[356184014,1742050233818,-150.0,0.00015541,2]
[356184015,1742050233827,-150.0,0.00015541,2]
[356184016,1742050233837,-203.1298829,0.00015569,2]
[356184017,1742050233847,-297.6597004,0.00015569,2]
[356184018,1742050233857,-161.83,0.00015655,2]
[356184019,1742050233867,-1000.0,0.00015656,2]
[356184020,1742050233876,-1157.1,0.00015657,2]
[356184021,1742050233886,-1144.55,0.0001583,2]
[356184022,1742050233896,-151.53,0.00016438,2]
[356184023,1742050233905,-300.0,0.00016438,2]
[356184024,1742050233913,-150.45,0.00016493,30]
[356184025,1742050233921,-1204.78,0.00016561,2]
[356184026,1742050233929,-161.83,0.00017078,2]
[356184027,1742050233939,-1000.0,0.00017079,2]
[356184028,1742050233949,-1157.1,0.00017081,2]
[356184029,1742050233958,-167.0,0.00017086,3]
[356184030,1742050233968,-151.53,0.00017123,2]
[356184031,1742050233977,-2387.18578782,0.00017125,2]
[356184032,1742050233987,-152.0,0.0001773,30]
[356184033,1742050233996,-1270.0,0.00017788,2]
[356184034,1742050234006,-541.0,0.00017788,2]
[356184035,1742050234016,-628.068,0.00017788,2]
[356184036,1742050234026,-904.886,0.00017788,2]
[356184037,1742050234036,-1428.0,0.00017788,2]
[356184038,1742050234046,-150.165,0.00017788,2]
[356184039,1742050234056,-1013.0,0.00017788,2]
[356184040,1742050234066,-151.0,0.00017788,2]
[356184041,1742050234076,-151.53,0.00017808,2]
[356184042,1742050234086,-10415.91101827,0.00017971,2]
[356184043,1742050234096,-151.53,0.00018493,2]
[356184044,1742050234107,-153.97,0.000186,2]
[356184045,1742050234116,-238.711521,0.00018808,2]
[356184046,1742050234126,-1204.78,0.00018825,2]
[356184047,1742050234136,-250.0,0.00019,2]
[356184048,1742050234146,-151.53,0.00019178,2]
[356184049,1742050234156,-208.46730552,0.0001978,2]
[356184050,1742050234165,-500.0,0.0001978,2]
[356184051,1742050234175,-500.0,0.0001978,2]
[356184052,1742050234185,-500.0,0.0001978,2]
[356184053,1742050234195,-500.0,0.0001978,2]
[356184054,1742050234204,-500.0,0.0001978,2]
[356184055,1742050234214,-500.0,0.0001978,2]
[356184056,1742050234227,-500.0,0.0001978,2]
[356184057,1742050234236,-500.0,0.0001978,2]
[356184058,1742050234246,-500.0,0.0001978,2]
[356184059,1742050234255,-501.0,0.0001978,2]
[356184060,1742050234266,-475.30972536,0.0001978,2]
[356184061,1742050234276,-6308.64655497,0.0001978,2]
[356184062,1742050234286,-151.53,0.00019863,2]
[356184063,1742050234298,-219.5870948,0.00019866,2]
[356184064,1742050234309,-283.3260011,0.00019866,2]
[356184065,1742050234319,-527.4057168,0.00019866,2]
[356184066,1742050234330,-4779.51938,0.00019866,2]
[356184067,1742050234339,-500.0,0.00019873,2]
[356184068,1742050234348,-500.0,0.00019873,2]
[356184069,1742050234358,-170407.85052251,0.0001988,2]
[356184070,1742050234368,-87425.60374403,0.0001988,2]
[356184071,1742050234378,-6860.7744604,0.0001988,2]
[356184072,1742050234388,-151.0,0.0001988,2]
[356184073,1742050234398,-151.0,0.0001988,2]
[356184074,1742050234408,-1400.0,0.000199,7]
[356184075,1742050234419,-5000.0,0.0001991,2]
[356184076,1742050234429,-222.0,0.0001991,2]
[356184077,1742050234441,-243.8309516,0.00019996,2]
[356184078,1742050234451,-317.1930744,0.00019996,2]
[356184079,1742050234461,-590.4486003,0.00019996,2]
[356184080,1742050234471,-5350.8341642,0.00019996,2]
[356184081,1742050234481,-328.60996346,0.00019999,2]
[356184082,1742050234491,-205.88785417,0.00019999,2]
[356184083,1742050234501,-500.0,0.00019999,2]
[356184084,1742050234511,-207.34261561,0.00019999,2]
[356184085,1742050234521,-1208.44106906,0.0002,12]
[356184086,1742050234531,-979.18845871,0.0002,10]
[356184087,1742050234540,-10000.0,0.0002,10]
[356184088,1742050234550,-196.12899405,0.0002,2]
[356184089,1742050234560,-269.23275,0.0002,2]
[356184090,1742050234570,-151.02,0.0002,2]
[356184091,1742050234580,-168.03612225,0.0002001,2]
[356184092,1742050234589,-28023.02976169,0.0002001,2]
[356184093,1742050234599,-170169.77973196,0.0002001,2]
[356184094,1742050234611,-151.0,0.0002001,2]
[356184095,1742050234622,-151.0,0.0002001,2]
[356184096,1742050234632,-208.1128622,0.00020011,2]
[356184097,1742050234641,-152.0,0.00020307,30]
[356184098,1742050234651,-2387.18578782,0.00020486,2]
[356184099,1742050234660,-161.183,0.00020488,2]
[356184100,1742050234670,-151.53,0.00020548,2]
[356184101,1742050234680,-300.0,0.00021,2]
[356184102,1742050234690,-1204.78,0.00021089,2]
[356184103,1742050234700,-151.53,0.00021233,2]
[356184104,1742050234710,-475.30972528,0.0002186,2]
[356184105,1742050234720,-605.61,0.00021917,2]
[356184106,1742050234732,-151.53,0.00021918,2]
[356184107,1742050234741,-151.02,0.0002199,2]
[356184108,1742050234752,-18882.54480711,0.00022,2]
[356184109,1742050234762,-6308.64655489,0.00022472,2]
[356184110,1742050234772,-151.53,0.00022603,2]
[356184111,1742050234782,-152.0,0.00022884,30]
[356184112,1742050234793,-350.0,0.00023,2]
[356184113,1742050234803,-341.44024091,0.00023,2]
[356184114,1742050234813,-605.61,0.00023287,2]
[356184115,1742050234823,-151.53,0.00023288,2]
[356184116,1742050234833,-1204.78,0.00023353,2]
[356184117,1742050234843,-609.37,0.00023836,2]
[356184118,1742050234853,-2387.18578782,0.00023846,2]
[356184119,1742050234863,-475.30972528,0.0002394,2]
[356184120,1742050234873,-151.53,0.00023973,2]
[356184121,1742050234884,-167.0,0.00024173,3]
[356184122,1742050234894,-234.4373106,0.00024215,2]
[356184123,1742050234904,-1033.088,0.00024258,6]
[356184124,1742050234915,-208.46730549,0.00024633,2]
[356184125,1742050234926,-605.61,0.00024657,2]
[356184126,1742050234936,-151.53,0.00024658,2]
[356184127,1742050234948,-1000.0,0.00024658,2]
[356184128,1742050234958,-173.29275546,0.00024783,2]
[356184129,1742050234968,-268.0748084,0.00024873,2]
[356184130,1742050234978,-351.0601477,0.00024873,2]
[356184131,1742050234989,-653.4914837,0.00024873,2]
[356184132,1742050234999,-292.3186652,0.00024883,2]
[356184133,1742050235009,-384.927221,0.00024883,2]
[356184134,1742050235019,-716.5343672,0.00024883,2]
[356184135,1742050235030,-400.0,0.00025,2]
[356184136,1742050235041,-10000.0,0.00025,10]
[356184137,1742050235051,-151.0,0.00025,7]
[356184138,1742050235060,-269.23275,0.00025,2]
[356184139,1742050235070,-6308.64655489,0.00025164,2]
[356184140,1742050235080,-1000.0,0.00025352,2]
[356184141,1742050235090,-152.0,0.00025461,30]
[356184142,1742050235100,-1204.78,0.00025617,2]
[356184143,1742050235110,-475.30972528,0.0002602,2]
[356184144,1742050235120,-605.61,0.00026027,2]
[356184145,1742050235131,-150.45,0.00026345,30]
[356184146,1742050235141,-832.23,0.00026849,2]
[356184147,1742050235151,-208.96,0.00026849,2]
[356184148,1742050235161,-160.41,0.00026849,2]
[356184149,1742050235171,-450.0,0.00027,2]
[356184150,1742050235182,-2387.18578782,0.00027207,2]
[356184151,1742050235192,-500.0,0.00027397,2]
[356184152,1742050235202,-500.0,0.00027397,2]
[356184153,1742050235213,-500.0,0.00027397,2]
[356184154,1742050235227,-500.0,0.00027397,2]
[356184155,1742050235237,-500.0,0.00027397,2]
[356184156,1742050235248,-500.0,0.00027397,2]
[356184157,1742050235259,-500.0,0.00027397,2]
[356184158,1742050235269,-500.0,0.00027397,2]
[356184159,1742050235279,-500.0,0.00027397,2]
[356184160,1742050235290,-500.0,0.00027397,2]
[356184161,1742050235301,-470.23880298,0.00027397,2]
[356184162,1742050235311,-500.0,0.00027397,2]
[356184163,1742050235321,-500.0,0.00027397,2]
[356184164,1742050235332,-500.0,0.00027397,2]
[356184165,1742050235342,-500.0,0.00027397,2]
[356184166,1742050235351,-450.0,0.00027397,2]
[356184167,1742050235362,-605.61,0.00027397,2]
[356184168,1742050235372,-4000.0,0.00027397,2]
[356184169,1742050235381,-6308.64655489,0.00027856,2]
[356184170,1742050235393,-1204.78,0.00027881,2]
[356184171,1742050235403,-172.01092095,0.00028,2]
[356184172,1742050235413,-152.0,0.00028038,30]
[356184173,1742050235424,-475.30972528,0.000281,2]
[356184174,1742050235435,-605.61,0.00028767,2]
[356184175,1742050235445,-151.0,0.00028909,7]
[356184176,1742050235455,-500.0,0.00029,2]
[356184177,1742050235466,-208.46730549,0.00029487,2]
[356184178,1742050235476,-5922.1489483,0.00029559,2]
[356184179,1742050235486,-14846.4353546,0.00029559,2]
[356184180,1742050235497,-14421.9959656,0.00029559,2]
[356184181,1742050235507,-151.02,0.00029569,2]
[356184182,1742050235517,-11442.57538583,0.00029579,2]
[356184183,1742050235528,-12732.56433956,0.00029579,2]
[356184184,1742050235538,-1906.04821815,0.00029579,2]
[356184185,1742050235549,-182.60579174,0.00029579,2]
[356184186,1742050235558,-494.8296935,0.00029579,2]
[356184187,1742050235568,-643.0,0.00029579,2]
[356184188,1742050235578,-962.59762775,0.00029579,2]
[356184189,1742050235588,-8566.35495017,0.00029579,2]
[356184190,1742050235598,-25147.80512555,0.00029579,2]
[356184191,1742050235608,-568.54346546,0.00029579,2]
[356184192,1742050235618,-1822.48599124,0.00029579,2]
[356184193,1742050235628,-3217.88739763,0.00029579,2]
[356184194,1742050235639,-174.01151722,0.00029579,2]
[356184195,1742050235649,-7030.4903585,0.00029579,2]
[356184196,1742050235658,-550.0,0.00029579,2]
[356184197,1742050235668,-1454.89323613,0.00029579,2]
[356184198,1742050235678,-1000.13528352,0.00029579,2]
[356184199,1742050235688,-796.82609491,0.00029579,2]
[356184200,1742050235698,-7084.01848773,0.00029579,2]
[356184201,1742050235708,-1308.62929171,0.00029579,2]
[356184202,1742050235718,-150.0,0.00029579,30]
[356184203,1742050235727,-117615.98928536,0.00029579,2]
[356184204,1742050235738,-446.68593594,0.00029579,2]
[356184205,1742050235747,-1059.74076225,0.00029579,2]
[356184206,1742050235757,-12915.33570518,0.00029579,2]
[356184207,1742050235767,-1009.02634062,0.00029579,2]
[356184208,1742050235777,-151.0,0.00029583,7]
[356184209,1742050235787,-151.0,0.00029583,7]
[356184210,1742050235797,-151.0,0.00029583,7]
[356184211,1742050235807,-2800.0,0.000299,10]
[356184212,1742050235817,-2810.55511029,0.0003,3]
[356184213,1742050235828,-20330.00613388,0.0003,15]
[356184214,1742050235838,-269.23275,0.0003,2]
[356184215,1742050235848,-151.02,0.00030054,2]
[356184216,1742050235859,-14846.4353546,0.00030063,2]
[356184217,1742050235869,-14421.9959656,0.00030063,2]
[356184218,1742050235879,-2753.79517041,0.00030123,2]
[356184219,1742050236627,-514.53413072,0.00030123,2]
[356184228,1742050240341,-171.0,0.00017788,2]
[356184229,1742050240352,-125.58133628,0.0001978,2]
[356184240,1742050242941,-150.0,0.00017788,2]
[356184241,1742050242951,-226.8243925,0.0001978,2]
[356184251,1742050245794,-61.03927122,0.0001978,2]
[356184252,1742050245803,-150.0,0.00020788,2]
[356184253,1742050245813,-276.301,0.0002842,2]
[356184254,1742050245822,-3355.39005049,0.00030123,2]
[356184255,1742050245831,-605.61,0.00030136,2]
[356184256,1742050245841,-1204.78,0.00030145,2]
[356184257,1742050245850,-475.30972528,0.0003018,2]
[356184258,1742050245859,-14846.4353546,0.00030529,2]
[356184259,1742050245868,-14421.9959656,0.00030529,2]
[356184260,1742050245879,-5737.0005282,0.00030548,2]
[356184261,1742050245971,-571.64602669,0.00030548,2]
[356184262,1742050245980,-428.35397331,0.00030567,2]
[356184273,1742051431897,-1417.5038,0.00013064,2]
[356184274,1742051431907,-150.0,0.00013106,2]